bitfinex/quotes_SOLUSD_20241001
["timestamp","ask_amount","ask_price","bid_price","bid_amount"]
[1727821931978,16.4752,145.51,145.47,23.776884]
[1727821932200,16.4752,145.51,145.46,17.1859]
[1727821932391,6.8728,145.5,145.46,17.1859]
[1727821932570,15.568,145.54,145.46,17.1859]
[1727821932779,6.872,145.52,145.47,6.874]
[1727821933603,6.872,145.52,145.48,1.37446179]
[1727821934189,6.8752,145.45,145.4,6.8772]
[1727821935603,15.568,145.5,145.39,17.195]
[1727821935604,6.8748,145.46,145.39,17.195]
[1727821935979,6.8748,145.46,145.4,23.776884]
[1727821936204,15.568,145.5,145.41,17.1917]
[1727821936503,6.8738,145.48,145.43,6.8761]
[1727821937207,6.8738,145.48,145.44,1.37486582]
[1727821937391,6.8738,145.48,145.43,6.8761]
[1727821937786,6.8744,145.47,145.42,23.776884]
[1727821938301,6.8744,145.47,145.42,30.652984]
[1727821940505,6.8748,145.46,145.42,23.776884]
[1727821940707,6.8748,145.46,145.41,24.0684]
[1727821941699,6.8742,145.48,145.42,6.8765]
[1727821941918,22.74834428,145.5,145.41,17.1917]
[1727821941919,6.8733,145.49,145.44,6.8755]
[1727821943199,6.8739,145.48,145.43,24.0658]
[1727821944107,6.8733,145.49,145.44,30.652384]
[1727821944913,6.8733,145.49,145.45,6.8752]
[1727821945418,15.568,145.5,145.46,8.24928978]
[1727821948295,15.568,145.5,145.47,30.650984]
[1727821949310,7.16859654,145.54,145.47,23.776884]
[1727821949491,7.16859654,145.54,145.49,17.1827]
[1727821949695,22.825,145.55,145.49,17.1827]
[1727821950000,6.8713,145.54,145.49,24.0559]
[1727821950204,6.8713,145.54,145.5,6.8727]
[1727821950403,22.825,145.55,145.49,17.1827]
[1727821950703,29.6959,145.55,145.5,6.8725]
[1727821952010,16.3456,145.55,145.51,8.24649276]
[1727821952222,16.3456,145.55,145.52,6.8718]
[1727821952511,16.3456,145.55,145.53,1.3741051]
[1727821952701,16.3456,145.55,145.53,1.37410809]
[1727821952906,6.8696,145.57,145.51,17.1804]
[1727821953114,6.8696,145.57,145.52,6.8718]
[1727821953820,16.8456,145.58,145.51,17.1804]
[1727821954000,6.87,145.56,145.52,6.8718]
[1727821954815,6.87,145.56,145.51,17.1804]
[1727821954994,6.87,145.56,145.52,6.8717]
[1727821955805,16.8456,145.58,145.52,6.8717]
[1727821956011,16.8456,145.58,145.51,17.1804]
[1727821956012,0.5,145.57,145.51,17.1804]
[1727821956223,0.5,145.57,145.49,23.776884]
[1727821956391,0.5,145.57,145.48,17.1838]
[1727821956594,6.8721,145.52,145.48,17.1838]
[1727821956791,6.8721,145.52,145.48,24.0573]
[1727821957225,0.5,145.57,145.48,24.0573]
[1727821957226,6.8714,145.53,145.48,24.0573]
[1727821960208,6.8714,145.53,145.49,6.8732]
[1727821960819,6.8705,145.55,145.5,6.8727]
[1727821961207,6.871,145.54,145.5,6.8727]
[1727821961928,6.8706,145.55,145.51,6.8723]
[1727821962117,6.8706,145.55,145.5,6.8727]
[1727821962634,6.8706,145.55,145.51,1.37416497]
[1727821962942,6.8706,145.55,145.5,6.8727]
[1727821963636,6.8706,145.55,145.51,6.8722]
[1727821964222,7.1758347,145.57,145.52,8.24590695]
[1727821964423,6.8695,145.57,145.53,6.8714]
[1727821964608,6.8695,145.57,145.52,1.37410695]
[1727821964609,23.2146,145.58,145.54,6.8707]
[1727821965330,6.8698,145.57,145.52,24.0506]
[1727821967606,6.8698,145.57,145.53,6.8713]
[1727821969241,6.8705,145.55,145.51,6.8722]
[1727821969533,6.871,145.54,145.5,6.8727]
[1727821969707,6.8719,145.52,145.47,6.8738]
[1727821970720,6.8719,145.52,145.48,6.8737]
[1727821971116,6.8719,145.52,145.46,38.7179]
[1727821971431,17.6767,145.55,145.46,24.0608]
[1727821973333,6.8728,145.5,145.46,24.0608]
[1727821973918,6.8724,145.51,145.46,24.0608]
[1727821974438,6.8724,145.51,145.46,17.1862]
[1727821974738,6.872,145.52,145.47,6.874]
[1727821975036,6.8715,145.53,145.48,6.8737]
[1727821975237,7.17637621,145.55,145.49,1.3743545]
[1727821975538,7.17637621,145.55,145.48,17.1839]
[1727821975539,6.87,145.56,145.52,6.8717]
[1727821975733,6.87,145.56,145.53,1.37406669]
[1727821976237,6.87,145.56,145.52,6.8717]
[1727821976419,6.87,145.56,145.53,1.37405101]
[1727821976737,6.8696,145.57,145.52,6.8717]
[1727821976918,6.8696,145.57,145.54,1.37404621]
[1727821977244,6.8696,145.57,145.52,6.8717]
[1727821977415,6.87,145.56,145.52,6.8717]
[1727821977924,6.87,145.56,145.53,1.37402284]
[1727821978525,6.8696,145.57,145.53,1.37402284]
[1727821979632,6.8696,145.57,145.52,6.8717]
[1727821980031,6.8696,145.57,145.48,75.56052439]
[1727821980235,6.8696,145.57,145.53,6.8714]
[1727821980432,6.8696,145.57,145.54,1.37392615]
[1727821980639,6.8696,145.57,145.53,6.8714]
[1727821980945,23.2148,145.58,145.54,1.37392761]
[1727821981136,23.2148,145.58,145.53,6.8714]
[1727821981440,16.3456,145.58,145.54,1.37391582]
[1727821981645,7.17369148,145.61,145.55,6.8703]
[1727821981846,0.5,145.6,145.54,17.1769]
[1727821982150,6.8691,145.58,145.55,1.37384891]
[1727821982440,0.5,145.61,145.56,1.37384071]
[1727821982746,6.8682,145.6,145.56,1.37384071]
[1727821982921,6.8682,145.6,145.55,6.8703]
[1727821983121,6.8682,145.6,145.56,1.37371296]
[1727821983542,33.251,145.62,145.58,6.8689]
[1727821983543,16.0826,145.62,145.58,6.8689]
[1727821983926,22.9498,145.62,145.58,6.8689]
[1727821985322,6.8668,145.63,145.59,6.8685]
[1727821985541,6.8662,145.64,145.6,1.37333494]
[1727821985742,6.8669,145.63,145.58,24.041]
[1727821986544,6.8662,145.64,145.59,6.8682]
[1727821988132,6.8662,145.64,145.58,17.1721]
[1727821988333,6.8662,145.64,145.6,6.868]
[1727821989124,6.8676,145.61,145.57,6.8694]
[1727821989327,6.8687,145.59,145.55,24.0459]
[1727821989735,37.6661,145.64,145.56,6.87]
[1727821989933,6.8677,145.61,145.57,6.8695]
[1727821991056,6.8677,145.61,145.55,17.1756]
[1727821991057,6.8677,145.61,145.56,6.8699]
[1727821991657,6.8682,145.6,145.55,24.0459]
[1727821991870,6.8687,145.59,145.55,24.0459]
[1727821992335,6.8687,145.59,145.55,17.1756]
[1727821992654,6.8691,145.58,145.55,17.1756]
[1727821993232,46.03819021,145.64,145.55,17.1756]
[1727821993437,6.8687,145.59,145.55,17.1756]
[1727821993639,6.8682,145.6,145.55,17.1756]
[1727821993835,6.8682,145.6,145.56,6.8699]
[1727821994258,8.87209021,145.64,145.57,18.54694229]
[1727821994439,6.8671,145.63,145.58,6.8687]
[1727821994831,16.0826,145.65,145.59,1.37340117]
[1727821995143,16.0826,145.65,145.59,17.1704]
[1727821995449,6.8668,145.63,145.59,17.1704]
[1727821995751,6.8668,145.63,145.59,24.0389]
[1727821995752,6.8667,145.63,145.59,24.0389]
[1727821996435,6.8667,145.63,145.6,1.37333512]
[1727821997039,6.8667,145.63,145.59,24.0389]
[1727821997246,6.8667,145.63,145.59,17.1704]
[1727821998548,6.8663,145.64,145.59,24.0388]
[1727821998751,6.8663,145.64,145.6,1.37330189]
[1727821998952,6.8668,145.63,145.59,24.0388]
[1727821999838,22.9485,145.65,145.6,6.8681]
[1727822000057,16.0826,145.65,145.6,6.8681]
[1727822000365,6.8662,145.64,145.6,6.8681]
[1727822000859,22.9484,145.65,145.61,6.8676]
[1727822001041,22.9484,145.65,145.6,6.868]
[1727822002047,6.8662,145.64,145.6,6.868]
[1727822002254,22.9485,145.65,145.6,6.868]
[1727822002856,6.8659,145.65,145.61,8.24069465]
[1727822003056,6.8653,145.66,145.59,17.1704]
[1727822003244,6.8653,145.66,145.59,37.03932439]
[1727822004062,6.8653,145.66,145.62,6.8671]
[1727822004364,6.8653,145.66,145.63,1.37304262]
[1727822004533,17.1635,145.68,145.63,1.37304262]
[1727822004739,7.3638,145.7,145.65,6.8653]
[1727822004938,7.3638,145.7,145.66,1.37287216]
[1727822004939,6.8638,145.7,145.66,1.37287216]
[1727822005162,16.6635,145.72,145.66,1.37287216]
[1727822005354,0.5,145.71,145.65,24.0297]
[1727822006053,16.6635,145.72,145.66,6.8651]
[1727822006249,6.8629,145.71,145.67,1.37262904]
[1727822006661,6.8629,145.71,145.67,8.23742904]
[1727822006961,6.8629,145.71,145.67,6.8648]
[1727822007149,16.6635,145.72,145.67,6.8648]
[1727822007150,23.526,145.72,145.67,6.8648]
[1727822007346,6.8632,145.71,145.66,6.8651]
[1727822007549,6.8634,145.7,145.66,6.8651]
[1727822008367,0.5,145.69,145.62,39.8456]
[1727822008547,0.5,145.71,145.63,23.776884]
[1727822009658,6.8643,145.68,145.63,30.643184]
[1727822010166,6.8643,145.68,145.64,6.8661]
[1727822010577,6.8643,145.68,145.65,23.776884]
[1727822011971,6.8649,145.67,145.63,23.776884]
[1727822012146,6.8653,145.66,145.63,23.776884]
[1727822012547,17.6577,145.71,145.63,23.776884]
[1727822012756,6.8649,145.67,145.63,23.776884]
[1727822014686,6.8649,145.67,145.63,30.643484]
[1727822015171,6.8645,145.68,145.65,23.776884]
[1727822015676,6.8645,145.68,145.66,1.37285235]
[1727822015879,6.8635,145.7,145.66,1.37285235]
[1727822016074,7.17209949,145.71,145.67,30.641384]
[1727822016266,0.39724145,145.74,145.67,23.776884]
[1727822016576,6.8623,145.73,145.69,6.8638]
[1727822016764,6.8625,145.72,145.69,23.776884]
[1727822017353,0.39724145,145.74,145.69,30.640584]
[1727822017875,7.25884145,145.74,145.69,30.640584]
[1727822021776,6.8628,145.72,145.68,17.1605]
[1727822021965,0.39724145,145.74,145.67,6.8647]
[1727822022163,0.5,145.73,145.67,6.8647]
[1727822022580,0.5,145.73,145.68,1.37252699]
[1727822023180,6.863,145.71,145.67,6.8647]
[1727822023682,6.863,145.71,145.68,23.776884]
[1727822024059,6.863,145.71,145.67,23.776884]
[1727822024380,6.863,145.71,145.68,1.3725667]
[1727822025467,0.89724145,145.74,145.67,23.776884]
[1727822025672,0.89724145,145.74,145.65,37.03282439]
[1727822025673,6.8634,145.7,145.66,30.641984]
[1727822025860,6.863,145.71,145.66,30.641984]
[1727822026263,6.8625,145.72,145.68,23.776884]
[1727822026460,6.8625,145.72,145.65,19.86892439]
[1727822026461,7.25914145,145.74,145.71,23.776884]
[1727822028269,7.25914145,145.74,145.7,23.776884]
[1727822028474,6.8621,145.73,145.7,23.776884]
[1727822029383,7.25884145,145.74,145.7,23.776884]
[1727822029686,7.25884145,145.74,145.71,1.37226607]
[1727822029887,7.25884145,145.74,145.7,23.776884]
[1727822030684,0.39724145,145.74,145.71,1.37226124]
[1727822030864,0.39724145,145.74,145.71,8.23506124]
[1727822031485,0.39724145,145.74,145.71,1.37226124]
[1727822033090,0.39724145,145.74,145.72,23.776884]
[1727822033384,0.39724145,145.74,145.73,1.37219935]
[1727822033599,0.39724145,145.74,145.72,23.776884]
[1727822033779,0.39724145,145.74,145.71,23.776884]
[1727822033964,6.862,145.73,145.7,23.776884]
[1727822034790,0.39724145,145.74,145.71,1.37229924]
[1727822034970,7.25874145,145.74,145.71,1.37229924]
[1727822035172,7.25874145,145.74,145.7,23.776884]
[1727822036068,7.25874145,145.74,145.7,30.640184]
[1727822038787,7.25874145,145.74,145.7,23.776884]
[1727822039286,6.8627,145.72,145.68,6.8641]
[1727822040076,6.8644,145.68,145.64,6.866]
[1727822040407,6.8649,145.67,145.62,6.3658]
[1727822040688,6.8649,145.67,145.62,6.8668]
[1727822041596,6.8649,145.67,145.63,23.776884]
[1727822042688,6.8659,145.65,145.62,23.776884]
[1727822042890,6.8663,145.64,145.6,24.0382]
[1727822043195,6.8663,145.64,145.6,17.1701]
[1727822043502,20.5,145.69,145.59,6.8685]
[1727822043503,6.8667,145.63,145.59,6.8685]
[1727822043678,6.8658,145.65,145.6,6.8677]
[1727822043873,6.8653,145.66,145.62,6.8667]
[1727822044077,6.8653,145.66,145.61,24.0359]
[1727822044398,20.0,145.67,145.61,17.1684]
[1727822044577,6.8644,145.68,145.63,6.8666]
[1727822044971,6.8644,145.68,145.64,23.776884]
[1727822045491,6.8648,145.67,145.64,23.776884]
[1727822045678,6.8648,145.67,145.63,23.776884]
[1727822046110,6.8657,145.65,145.62,23.776884]
[1727822046275,6.8654,145.66,145.62,23.776884]
[1727822046978,20.5,145.69,145.62,23.776884]
[1727822048090,6.8654,145.66,145.62,23.776884]
[1727822048687,6.8648,145.67,145.62,23.776884]
[1727822048998,20.5,145.69,145.64,23.776884]
[1727822049204,6.865,145.67,145.64,23.776884]
[1727822049575,20.0,145.69,145.65,1.37294459]
[1727822049776,6.8644,145.68,145.65,1.37294459]
[1727822050193,20.0,145.69,145.65,1.37294459]
[1727822050404,26.8639,145.69,145.65,1.37294459]
[1727822050697,26.8639,145.69,145.66,23.776884]
[1727822050899,6.8639,145.69,145.67,1.37277858]
[1727822051482,22.4324,145.7,145.67,1.37277858]
[1727822051886,22.4324,145.7,145.67,23.776884]
[1727822052088,22.4324,145.7,145.68,1.37269181]
[1727822052380,6.8631,145.71,145.67,23.776884]
[1727822052693,6.8631,145.71,145.66,30.642084]
[1727822054887,6.8631,145.71,145.68,23.776884]
[1727822055087,6.8631,145.71,145.69,1.37253214]
[1727822056212,14.03606772,145.72,145.7,23.776884]
[1727822056500,6.8625,145.72,145.71,1.37243056]
[1727822057085,0.39724145,145.74,145.71,1.37243056]
[1727822057086,7.25914145,145.74,145.71,1.37243056]
[1727822057292,0.39724145,145.74,145.72,23.776884]
[1727822057589,0.39724145,145.74,145.72,25.14914684]
[1727822057788,0.39724145,145.74,145.72,23.776884]
[1727822058001,7.25874145,145.74,145.71,23.776884]
[1727822058502,7.25884145,145.74,145.7,23.776884]
[1727822059801,7.25884145,145.74,145.7,30.640084]
[1727822060304,0.39724145,145.74,145.7,23.776884]
[1727822060539,0.39724145,145.74,145.71,8.23513194]
[1727822062223,0.39724145,145.74,145.71,1.37223194]
[1727822062391,0.39724145,145.74,145.72,6.8624]
[1727822062892,0.39724145,145.74,145.73,6.862]
[1727822063693,0.39724145,145.74,145.71,17.1569]
[1727822063897,0.39724145,145.74,145.72,6.8623]
[1727822066818,0.39724145,145.74,145.73,6.862]
[1727822067809,0.39724145,145.74,145.71,17.1569]
[1727822068117,0.39724145,145.74,145.68,23.5]
[1727822068420,6.862,145.73,145.69,6.8637]
[1727822069926,15.96104145,145.74,145.68,17.1603]
[1727822070102,6.863,145.71,145.66,6.8651]
[1727822070295,15.96104145,145.74,145.67,6.8647]
[1727822070594,6.8631,145.71,145.66,6.8651]
[1727822071196,6.8635,145.7,145.65,24.0297]
[1727822071410,6.8639,145.69,145.65,24.0297]
[1727822071795,6.8633,145.71,145.66,1.37265531]
[1727822072207,6.8633,145.71,145.66,8.23775531]
[1727822072610,20.0,145.73,145.66,1.37265531]
[1727822072818,6.8625,145.72,145.67,6.8644]
[1727822073099,6.8625,145.72,145.68,1.37247874]
[1727822073301,6.8625,145.72,145.67,6.8644]
[1727822075821,20.0,145.73,145.67,6.8644]
[1727822076000,6.863,145.71,145.67,6.8644]
[1727822076204,6.863,145.71,145.66,6.8652]
[1727822079535,6.863,145.71,145.66,19.55803753]
[1727822083535,6.863,145.71,145.66,12.69283753]
[1727822083748,6.862,145.73,145.68,6.864]
[1727822084033,15.96104145,145.74,145.69,1.37241481]
[1727822084236,6.8624,145.72,145.69,1.37241481]
[1727822084414,6.8621,145.73,145.69,1.37241481]
[1727822084755,6.8621,145.73,145.68,19.55703753]
[1727822085235,6.8621,145.73,145.69,1.3723642]
[1727822085612,6.8621,145.73,145.68,19.55703753]
[1727822086324,6.8621,145.73,145.69,6.8637]
[1727822087132,6.8621,145.73,145.68,6.8642]
[1727822088236,16.46104145,145.74,145.67,24.026]
[1727822088633,16.46104145,145.74,145.67,17.1613]
[1727822088634,6.8634,145.7,145.67,17.1613]
[1727822089534,16.46104145,145.74,145.67,17.1613]
[1727822089743,6.8639,145.69,145.65,6.8656]
[1727822090036,33.61534145,145.74,145.64,17.165]
[1727822090037,16.46104145,145.74,145.64,17.165]
[1727822090213,20.0,145.73,145.64,17.165]
[1727822090422,0.5,145.72,145.64,17.165]
[1727822091125,6.8646,145.68,145.64,24.0311]
[1727822091526,6.8635,145.7,145.65,6.8654]
[1727822091940,6.8635,145.7,145.66,1.37268736]
[1727822092438,6.8635,145.7,145.65,6.8654]
[1727822092651,6.8635,145.7,145.66,8.23784679]
[1727822092820,0.5,145.72,145.66,8.23784679]
[1727822092821,6.8626,145.72,145.67,6.8643]
[1727822093144,15.96104145,145.74,145.68,1.37248761]
[1727822093315,6.862,145.73,145.68,17.1604]
[1727822093515,6.862,145.73,145.68,24.0246]
[1727822094239,6.8626,145.72,145.68,24.0246]
[1727822094837,6.8629,145.71,145.68,17.1604]
[1727822096326,6.8626,145.72,145.68,17.1604]
[1727822097232,6.8626,145.72,145.68,24.0246]
[1727822097431,16.46104145,145.74,145.67,12.69283753]
[1727822097634,6.8634,145.7,145.66,6.8649]
[1727822098648,6.8631,145.71,145.66,6.8649]
[1727822100226,6.8631,145.71,145.66,19.55773753]
[1727822100729,6.8631,145.71,145.67,6.8647]
[1727822101053,6.8631,145.71,145.66,12.69283753]
[1727822101225,6.8631,145.71,145.66,19.55793753]
[1727822101548,6.8639,145.69,145.65,36.72203753]
[1727822101733,6.8635,145.7,145.65,36.72203753]
[1727822102739,0.5,145.72,145.65,36.72203753]
[1727822102939,20.0,145.71,145.63,6.8665]
[1727822103242,6.8656,145.66,145.62,6.8671]
[1727822104344,6.8649,145.67,145.62,6.8671]
[1727822105154,6.866,145.65,145.61,17.1685]
[1727822105449,6.8663,145.64,145.6,6.8679]
[1727822105643,6.8663,145.64,145.59,19.56123753]
[1727822106023,0.5,145.67,145.59,12.69283753]
[1727822106245,16.3631,145.68,145.6,18.54287025]
[1727822106547,16.3631,145.68,145.58,19.56183753]
[1727822106548,6.8671,145.63,145.58,19.56183753]
[1727822106724,6.8671,145.63,145.58,6.869]
[1727822107225,6.8663,145.64,145.57,29.86603753]
[1727822107434,6.8663,145.64,145.59,6.8685]
[1727822107639,6.8667,145.63,145.59,6.8685]
[1727822108232,6.8663,145.64,145.59,6.8685]
[1727822110155,6.8663,145.64,145.59,12.69283753]
[1727822110331,13.6663,145.67,145.6,6.868]
[1727822110948,13.6663,145.67,145.59,29.86383753]
[1727822110949,13.6663,145.67,145.61,31.23468522]
[1727822111151,16.3631,145.68,145.64,6.8659]
[1727822111358,16.3631,145.68,145.65,1.3729024]
[1727822113462,20.0,145.67,145.6,6.2873]
[1727822113636,20.0,145.67,145.6,17.1699]
[1727822114127,6.8653,145.66,145.61,6.8675]
[1727822115164,6.8658,145.65,145.61,6.8675]
[1727822116237,20.0,145.67,145.6,29.86273753]
[1727822116448,26.8649,145.67,145.62,6.8668]
[1727822117036,20.0,145.67,145.62,6.8668]
[1727822117236,6.8653,145.66,145.62,6.8668]
[1727822118732,16.3631,145.68,145.65,6.8656]
[1727822118940,6.863,145.71,145.65,14.06567243]
[1727822119144,6.863,145.71,145.67,6.8646]
[1727822119348,6.863,145.71,145.68,1.37269351]
[1727822119734,15.6964,145.72,145.68,1.37269351]
[1727822120235,15.6964,145.72,145.69,6.8638]
[1727822120434,15.6964,145.72,145.68,24.0245]
[1727822120858,22.5589,145.72,145.68,24.0245]
[1727822122444,15.6964,145.72,145.68,17.1603]
[1727822122758,20.0,145.73,145.7,6.863]
[1727822122961,0.39724145,145.74,145.71,8.23529959]
[1727822123152,0.39724145,145.74,145.71,1.37239959]
[1727822123354,0.39724145,145.74,145.7,17.158]
[1727822123771,0.39724145,145.74,145.71,1.37228407]
[1727822124260,0.39724145,145.74,145.7,24.0212]
[1727822124448,6.8623,145.73,145.68,6.8638]
[1727822125139,0.39724145,145.74,145.69,1.37239034]
[1727822125337,7.25874145,145.74,145.7,6.8633]
[1727822125659,7.25874145,145.74,145.69,6.8638]
[1727822127142,7.25874145,145.74,145.67,36.99109298]
[1727822127143,0.39724145,145.74,145.67,17.1616]
[1727822127344,6.8628,145.72,145.67,24.0263]
[1727822127559,6.8634,145.7,145.64,20.0]
[1727822127759,15.6111,145.72,145.64,17.165]
[1727822127961,6.8656,145.66,145.61,24.0362]
[1727822128162,20.0,145.7,145.61,17.1687]
[1727822128350,6.8657,145.65,145.61,17.1687]
[1727822128548,37.1591,145.7,145.61,24.0363]
[1727822128756,6.8652,145.67,145.61,24.0363]
[1727822128949,37.1591,145.7,145.61,24.0363]
[1727822129154,6.8653,145.66,145.61,24.0363]
[1727822129770,6.8652,145.67,145.62,6.867]
[1727822130149,6.8655,145.66,145.61,24.0362]
[1727822131044,6.8655,145.66,145.62,6.8671]
[1727822131647,20.0,145.68,145.59,6.8685]
[1727822131866,17.1615,145.68,145.59,6.8685]
[1727822132267,20.0,145.67,145.59,6.8685]
[1727822132773,20.0,145.68,145.6,1.37332794]
[1727822132970,6.8654,145.66,145.61,6.8672]
[1727822133276,6.8654,145.66,145.62,1.37315852]
[1727822134354,15.6111,145.69,145.62,18.54015852]
[1727822134546,15.6111,145.69,145.62,17.167]
[1727822134750,6.8651,145.67,145.62,24.0337]
[1727822136174,20.0,145.68,145.62,17.167]
[1727822136356,6.8658,145.65,145.59,17.171]
[1727822136668,6.8666,145.64,145.59,24.0392]
[1727822136848,6.8672,145.62,145.57,6.8694]
[1727822137353,6.8668,145.63,145.58,6.8686]
[1727822137948,37.1615,145.68,145.58,6.8686]
[1727822138458,6.8668,145.63,145.58,6.8686]
[1727822141474,6.8663,145.64,145.58,17.1718]
[1727822141766,6.8663,145.64,145.59,6.8684]
[1727822142575,6.8663,145.64,145.6,8.24130419]
[1727822142866,6.8648,145.67,145.61,1.37318339]
[1727822143107,6.8648,145.67,145.63,6.8666]
[1727822143257,6.8648,145.67,145.64,1.373027]
[1727822143650,15.6111,145.69,145.64,1.373027]
[1727822144006,22.4751,145.69,145.64,8.239227]
[1727822144349,22.4751,145.69,145.64,1.373027]
[1727822144568,13.20693702,145.71,145.66,6.8648]
[1727822144759,6.8629,145.71,145.67,1.37270946]
[1727822144960,6.8637,145.7,145.65,6.8656]
[1727822145162,6.8639,145.69,145.65,6.8656]
[1727822145369,6.8634,145.7,145.66,1.37276402]
[1727822145681,6.8629,145.71,145.67,6.8647]
[1727822145887,16.491,145.72,145.68,1.37266883]
[1727822146172,23.3535,145.72,145.68,1.37266883]
[1727822146963,0.39724145,145.74,145.71,6.8628]
[1727822147189,0.39724145,145.74,145.71,8.23514755]
[1727822147485,0.39724145,145.74,145.68,17.1602]
[1727822147673,7.25874145,145.74,145.69,6.8638]
[1727822149089,6.8624,145.73,145.68,24.0245]
[1727822149597,0.39724145,145.74,145.69,8.23629342]
[1727822150091,6.8621,145.73,145.69,6.8638]
[1727822150391,7.25874145,145.74,145.7,1.37246643]
[1727822150571,0.39724145,145.74,145.7,8.23576643]
[1727822151489,0.39724145,145.74,145.67,19.82949298]
[1727822151785,0.39724145,145.74,145.72,6.8622]
[1727822151991,0.39724145,145.74,145.73,1.37219461]
[1727822152773,0.39724145,145.74,145.72,6.8622]
[1727822152978,0.39724145,145.74,145.71,6.8628]
[1727822153181,7.25884145,145.74,145.7,17.1579]
[1727822153585,0.39724145,145.74,145.67,17.1615]
[1727822153887,6.8628,145.72,145.67,24.0262]
[1727822154074,0.39724145,145.74,145.65,6.8657]
[1727822154281,6.8638,145.7,145.65,6.8657]
[1727822154478,6.863,145.71,145.66,6.8649]
[1727822155084,6.8634,145.7,145.66,6.8649]
[1727822156165,20.0,145.72,145.64,24.031]
[1727822156474,6.8639,145.69,145.64,24.031]
[1727822156685,6.8645,145.68,145.64,24.0311]
[1727822157292,6.8645,145.68,145.64,17.165]
[1727822160993,26.864,145.69,145.64,24.0308]
[1727822161193,26.864,145.69,145.64,17.165]
[1727822161503,26.864,145.69,145.64,24.0311]
[1727822161692,26.864,145.69,145.61,17.1685]
[1727822161693,20.0,145.69,145.61,17.1685]
[1727822161868,20.0,145.69,145.62,6.8671]
[1727822162072,6.8654,145.66,145.62,6.8671]
[1727822162497,6.8659,145.65,145.61,17.1685]
[1727822162797,37.1602,145.69,145.61,17.1685]
[1727822164375,6.8666,145.64,145.58,17.1721]
[1727822164691,37.1602,145.69,145.58,17.1721]
[1727822164900,20.0,145.67,145.58,17.1721]
[1727822165193,6.8677,145.61,145.57,6.8694]
[1727822166073,6.8677,145.61,145.56,6.87]
[1727822166277,6.8682,145.6,145.56,6.87]
[1727822167881,6.8677,145.61,145.56,6.87]
[1727822168503,20.0,145.63,145.57,18.54686127]
[1727822168804,6.8667,145.63,145.57,17.1732]
[1727822168993,6.8667,145.63,145.58,6.869]
[1727822169194,6.8672,145.62,145.57,17.1732]
[1727822169407,6.8672,145.62,145.57,24.0426]
[1727822169694,6.8672,145.62,145.58,6.8689]
[1727822172109,6.8682,145.6,145.54,17.1768]
[1727822172399,20.0,145.61,145.54,17.1768]
[1727822172573,6.8694,145.58,145.54,17.1768]
[1727822172977,6.8695,145.57,145.53,6.871]
[1727822173177,6.8696,145.57,145.53,6.8713]
[1727822173580,22.0116,145.57,145.52,6.8717]
[1727822174103,15.142,145.57,145.54,6.8708]
[1727822174677,15.142,145.57,145.53,6.8713]
[1727822174875,22.0116,145.57,145.53,6.8713]
[1727822175578,22.0116,145.57,145.51,17.1801]
[1727822175802,6.87,145.56,145.52,6.8717]
[1727822177608,15.142,145.57,145.52,6.8717]
[1727822177801,22.0116,145.57,145.52,6.8717]
[1727822180302,22.0116,145.57,145.53,6.8713]
[1727822180509,15.142,145.57,145.53,6.8713]
[1727822180713,15.142,145.57,145.51,17.1801]
[1727822181005,15.142,145.57,145.49,60.56189298]
[1727822181006,15.142,145.57,145.55,6.8704]
[1727822181488,15.142,145.57,145.54,6.8709]
[1727822182285,22.01,145.61,145.56,6.87]
[1727822182491,15.142,145.61,145.56,1.37375107]